bitfinex-derivatives/quotes_SOLF0:USTF0_20250808
["timestamp","ask_amount","ask_price","bid_price","bid_amount"]
[1754615527300,27.65720698,174.56,174.55,3.85e-06]
[1754615527804,8.31942153,174.56,174.55,3.17]
[1754615527996,2.59272153,174.56,174.53,20.46204744]
[1754615528195,2.59272153,174.56,174.52,8.11119148]
[1754615528403,8.31942153,174.56,174.55,31.58714488]
[1754615528601,7.60607204,174.56,174.55,25.85783028]
[1754615528796,3.58113504,174.56,174.55,21.5611742]
[1754615528993,2.93,174.61,174.55,14.40008073]
[1754615529192,2.93,174.6,174.57,14.40008073]
[1754615529395,2.93,174.61,174.57,14.40008073]
[1754615529795,11.65000645,174.62,174.57,14.40008073]
[1754615530103,11.65000645,174.62,174.52,3.17]
[1754615530403,11.65000645,174.62,174.55,3.17]
[1754615530601,19.76119793,174.62,174.51,3.17]
[1754615530803,8.11119148,174.59,174.51,3.17]
[1754615531007,5.7284,174.51,174.5,41.10532896]
[1754615531299,113.94,174.54,174.5,41.10532896]
[1754615531505,113.94,174.54,174.49,0.04219419]
[1754615531701,113.94,174.54,174.51,3.17]
[1754615531895,3.58127887,174.53,174.51,1.73748846]
[1754615532101,3.58127887,174.52,174.49,0.04219419]
[1754615532296,3.58127887,174.51,174.49,0.04219419]
[1754615532500,3.58127887,174.5,174.49,0.04219419]
[1754615532707,9.31017887,174.5,174.43,8.11119148]
[1754615532907,3.58127887,174.49,174.42,8.11119148]
[1754615533107,3.58170309,174.48,174.43,3.17]
[1754615533409,3.58170309,174.47,174.44,3.17]
[1754615533610,3.58170309,174.46,174.39,8.11119148]
[1754615533809,3.58170309,174.45,174.39,8.11119148]
[1754615534000,8.11119148,174.51,174.4,3.17]
[1754615534409,8.11119148,174.51,174.41,3.17]
[1754615534602,8.11119148,174.48,174.36,11.32038814]
[1754615534813,11.22119148,174.46,174.29,113.92]
[1754615535003,11.22119148,174.46,174.32,8.11119148]
[1754615535311,3.11,174.45,174.32,8.11119148]
[1754615535705,8.11119148,174.43,174.32,8.11119148]
[1754615535910,3.11,174.42,174.36,31.58820472]
[1754615536106,3.11,174.39,174.36,31.58820472]
[1754615536410,8.11119148,174.43,174.37,0.04288818]
[1754615537006,5.7327,174.38,174.37,8.818e-05]
[1754615537207,113.82,174.39,174.36,22.8124929]
[1754615537511,113.82,174.39,174.36,25.9824929]
[1754615537712,5.733,174.37,174.36,25.9824929]
[1754615538015,113.8,174.42,174.37,3.17]
[1754615538410,0.04068094,174.38,174.37,5.7329]
[1754615538610,0.12,174.47,174.35,5.96106752]
[1754615538815,113.86,174.49,174.38,5.28640582]
[1754615539115,113.88,174.53,174.42,8.11119148]
[1754615539317,113.88,174.53,174.43,9.6198173]
[1754615539509,113.88,174.53,174.35,32.02393615]
[1754615539510,0.16,174.51,174.45,3.17]
[1754615539704,5.7297,174.47,174.46,6.4498173]
[1754615539909,8.11119148,174.49,174.41,3.17]
[1754615540206,5.731,174.43,174.42,6.693e-05]
[1754615540512,8.11119148,174.43,174.33,3.17]
[1754615540711,8.11119148,174.43,174.31,5.7347]
[1754615540712,5.734,174.34,174.29,8.11119148]
[1754615540915,3.11,174.39,174.27,8.11119148]
[1754615541218,122.05119148,174.39,174.29,3.17]
[1754615541411,5.7345,174.33,174.29,3.17]
[1754615541612,122.05119148,174.39,174.27,8.11119148]
[1754615541812,5.7351,174.31,174.28,3.17]
[1754615542017,0.04062566,174.33,174.25,3.17]
[1754615542209,7.16990963,174.32,174.26,3.17]
[1754615542411,5.736,174.28,174.27,3.17]
[1754615542611,7.16990963,174.28,174.18,113.92]
[1754615542813,7.16990963,174.27,174.13,50.5601782]
[1754615543016,7.16990963,174.26,174.16,8.11119148]
[1754615543318,7.16990963,174.25,174.16,8.11119148]
[1754615543517,7.16990963,174.24,174.16,8.11119148]
[1754615543712,7.2079857,174.23,174.16,8.11119148]
[1754615543915,7.2079857,174.23,174.13,50.5601782]
[1754615543916,7.16990963,174.22,174.19,8.11119148]
[1754615544115,0.44990963,174.21,174.19,8.11119148]
[1754615544315,0.03807607,174.23,174.19,8.11119148]
[1754615544517,7.17376127,174.22,174.19,8.11119148]
[1754615544712,7.17376127,174.21,174.2,3.03]
[1754615544918,10.28376127,174.21,174.16,2.37179213]
[1754615545117,8.11119148,174.28,174.2,31.61562137]
[1754615545322,7.17491458,174.27,174.2,31.61562137]
[1754615545523,3.11,174.27,174.2,31.61562137]
[1754615545723,8.8482,174.21,174.2,10.49902137]
[1754615546027,8.11119148,174.23,174.19,4.637e-05]
[1754615546215,5.7392,174.18,174.17,1.63122137]
[1754615546418,9.32772723,174.18,174.17,1.63122137]
[1754615546614,8.11119148,174.2,174.12,3.17]
[1754615546818,3.11,174.18,174.08,49.21149927]
[1754615547020,5.7407,174.14,174.08,41.10030779]
[1754615547219,3.58870873,174.13,174.08,41.10030779]
[1754615547424,6.69870873,174.12,174.06,49.21149927]
[1754615547727,3.14946825,174.15,174.06,54.95429927]
[1754615547919,3.14946825,174.15,174.06,49.21149927]
[1754615547920,3.11,174.15,174.06,49.21149927]
[1754615548116,8.11119148,174.2,174.06,44.90417641]
[1754615548321,3.14995843,174.12,174.06,44.90417641]
[1754615548717,3.14995843,174.12,174.04,8.11119148]
[1754615548921,3.14995843,174.12,174.02,424.44074603]
[1754615548922,3.14995843,174.12,174.02,421.06507673]
[1754615549123,8.11119148,174.17,174.08,3.17]
[1754615549326,8.11119148,174.17,174.08,8.9125]
[1754615549529,8.11119148,174.17,174.05,3.17]
[1754615549820,8.11119148,174.17,174.06,3.17]
[1754615550218,3.11,174.16,174.04,8.11119148]
[1754615550427,8.11119148,174.17,174.1,0.04175634]
[1754615550627,3.11,174.12,174.04,8.11119148]
[1754615550829,3.14620921,174.12,174.04,5.23954446]
[1754615551128,8.11119148,174.17,174.05,3.17]
[1754615551428,8.11119148,174.14,174.05,3.17]
[1754615551623,8.11119148,174.19,174.05,3.17]
[1754615551922,366.15663259,174.2,174.08,3.14]
[1754615552427,366.15663259,174.2,174.12,0.03619753]
[1754615552928,3.27,174.15,174.13,6.4613263]
[1754615553127,3.27,174.15,174.14,6.4616303]
[1754615553327,3.27,174.15,174.06,8.11119148]
[1754615553527,5.7425,174.09,174.03,8.11119148]
[1754615553829,3.27,174.19,174.06,28.62114419]
[1754615554025,0.03796282,174.08,174.06,28.62114419]
[1754615554330,3.27,174.07,174.06,28.62114419]
[1754615554523,3.27,174.07,174.06,13.95664419]
[1754615554728,3.27,174.07,173.97,3.14]
[1754615555426,113.56,174.14,174.03,3.14]
[1754615555640,3.27,174.13,174.07,5.7428]
[1754615555835,3.27,174.13,174.08,8.11119148]
[1754615556031,3.27,174.17,174.06,3.14]
[1754615556223,5.7406,174.14,174.08,8.11119148]
[1754615556427,3.27,174.15,174.08,11.25119148]
[1754615556628,3.27,174.15,174.08,3.14]
[1754615556823,3.27,174.15,174.05,8.41843374]
[1754615557133,8.11119148,174.16,174.02,3.14]
[1754615557334,0.03670318,174.13,174.02,11.25119148]
[1754615557533,0.03670318,174.13,174.08,8.11119148]
[1754615557736,301.67167474,174.2,174.11,3.14]
[1754615557939,274.17735895,174.2,174.11,3.14]
[1754615558230,5.7403,174.15,174.08,11.25119148]
[1754615558431,0.03795823,174.17,174.08,11.25119148]
[1754615558736,3.27,174.15,173.94,424.6303931]
[1754615559033,8.15352071,174.14,173.98,3.14]
[1754615559231,3.59015375,174.13,174.0,8.11119148]
[1754615559433,8.11119148,174.14,174.01,3.14]
[1754615559630,8.11119148,174.11,174.01,3.14]
[1754615559840,5.7445,174.02,173.99,3.14]
[1754615560033,8.15203339,174.08,173.97,3.14]
[1754615560230,5.7455,173.99,173.97,3.14]
[1754615560430,8.11119148,174.05,173.97,3.14]
[1754615560639,0.04022071,174.04,173.97,3.14]
[1754615561030,3.27,174.03,173.97,3.14]
[1754615561432,5.7458,173.99,173.97,3.14]
[1754615561632,3.27,174.03,173.95,31.27825011]
[1754615561842,3.27,174.03,173.95,29.84130967]
[1754615562139,3.31016683,174.01,173.95,29.84130967]
[1754615562342,3.31016683,174.01,173.93,3.14]
[1754615562844,0.04016683,174.01,173.95,0.92590259]
[1754615563038,0.04016683,174.01,173.97,8.11119148]
[1754615563237,8.11119148,174.11,173.99,3.14]
[1754615563638,8.11119148,174.11,174.01,3.14]
[1754615563843,14.46324982,174.14,174.01,3.14]
[1754615563844,14.46324982,174.14,174.03,8.11119148]
[1754615564140,5.7421,174.1,174.04,3.14]
[1754615564441,8.11119148,174.17,174.07,0.03998187]
[1754615564741,8.11119148,174.17,174.07,3.14]
[1754615564939,0.0433269,174.09,174.08,3.14]
[1754615565140,3.27,174.14,174.04,3.14]
[1754615565438,3.27,174.14,174.05,6.46341166]
[1754615565638,3.27,174.11,174.06,6.46341166]
[1754615565835,3.27,174.11,174.07,6.46411487]
[1754615566141,3.27,174.08,173.98,3.14]
[1754615566343,3.27,174.05,173.95,3.14]
[1754615566545,3.27,174.05,173.92,8.11119148]
[1754615566845,3.27,174.05,173.98,0.03828655]
[1754615567344,3.27,174.06,173.98,0.03828655]
[1754615567640,3.27,174.06,173.98,8.14947803]
[1754615567846,3.27,174.09,174.01,8.11119148]
[1754615568042,3.27,174.15,174.0,8.11119148]
[1754615568245,249.50024821,174.2,174.1,8.11119148]
[1754615568246,3.27,174.18,174.1,8.11119148]
[1754615568441,3.27,174.21,174.1,8.11119148]
[1754615568645,3.27,174.21,174.11,1.03]
[1754615568843,5.7392,174.18,174.11,1.03]
[1754615569146,3.27,174.21,174.14,1.03]
[1754615569351,3.27,174.24,174.17,1.04]
[1754615569545,3.27,174.29,174.2,1.04]
[1754615569743,3.27,174.28,174.17,9.15119148]
[1754615569944,3.27,174.28,174.18,1.04]
[1754615570245,11.38119148,174.28,174.23,0.0420629]
[1754615570440,9.04885279,174.24,174.23,6.29e-05]
[1754615570841,9.0073,174.24,174.23,6.29e-05]
[1754615571041,3.27,174.28,174.23,6.29e-05]
[1754615571347,3.27,174.29,174.23,6.29e-05]
[1754615571541,5.7373,174.24,174.23,6.29e-05]
[1754615571844,9.0073,174.24,174.23,6.29e-05]
[1754615572240,3.30690754,174.27,174.23,6.29e-05]
[1754615572642,3.27,174.26,174.23,6.29e-05]
[1754615572843,5.7373,174.24,174.23,6.29e-05]
[1754615573247,0.03690754,174.27,174.23,8.11125438]
[1754615573449,0.03690754,174.27,174.24,1.04]
[1754615573952,0.03690754,174.27,174.23,8.11125438]
[1754615574137,0.03690754,174.27,174.23,9.15125438]
[1754615574342,3.27,174.26,174.23,6.29e-05]
[1754615574640,0.03690754,174.27,174.23,6.29e-05]
[1754615574641,5.7373,174.24,174.23,6.29e-05]
[1754615575845,0.03690754,174.27,174.23,6.29e-05]
[1754615576042,3.30690754,174.27,174.23,6.29e-05]
[1754615576240,5.7373,174.24,174.23,6.29e-05]
[1754615579945,9.0073,174.24,174.23,6.29e-05]
[1754615580246,5.7373,174.24,174.23,6.29e-05]
[1754615580448,8.11119148,174.25,174.12,8.11119148]
[1754615580647,8.11119148,174.22,174.1,1.04]
[1754615580847,3.27,174.21,174.1,1.04]
[1754615581154,3.27,174.16,174.11,1.04]
[1754615581355,3.27,174.2,174.12,1.04]
[1754615581555,3.27,174.2,174.13,1.04]
[1754615581749,0.03617417,174.18,174.15,1.04]
[1754615581952,0.03617417,174.18,174.16,1.04]
[1754615582152,0.03617417,174.18,174.17,1.04]
[1754615582349,0.03617417,174.18,174.17,9.15119148]
[1754615582955,0.03617417,174.18,174.14,9.15119148]
[1754615583157,0.03617417,174.18,174.17,9.15119148]
[1754615583553,19.58079148,174.32,174.12,8.11119148]
[1754615583554,3.35,174.27,174.21,1.01]
[1754615583754,3.35,174.27,174.18,1.01]
[1754615583952,3.35,174.27,174.19,8.11119148]
[1754615584153,3.35,174.21,174.17,1.01]
[1754615584346,3.35,174.28,174.2,1.01]
[1754615584552,3.35,174.28,174.22,9.12119148]
[1754615585054,3.35,174.28,174.22,8.11119148]
[1754615585247,160.15949506,174.33,174.22,8.11119148]
[1754615585450,3.35,174.29,174.23,0.04209514]
[1754615585849,3.35,174.27,174.23,1.05209514]
[1754615586054,3.35,174.27,174.23,0.04209514]
[1754615586249,5.7369,174.25,174.23,0.04209514]
[1754615586559,3.35,174.29,174.23,0.04209514]
[1754615586751,3.35,174.29,174.17,8.11119148]
[1754615586947,3.35,174.29,174.24,0.04043511]
[1754615587457,9.0869,174.25,174.24,0.04043511]
[1754615587865,9.0869,174.25,174.21,1.01]
[1754615588157,3.35,174.26,174.23,0.04223891]
[1754615588355,8.11119148,174.33,174.23,0.04223891]
[1754615588356,3.35,174.24,174.23,0.04223891]
[1754615588754,9.0873,174.24,174.23,0.04223891]
[1754615589655,3.35,174.24,174.23,0.04223891]
[1754615589866,3.35,174.26,174.23,0.04223891]
[1754615590053,3.35,174.32,174.23,0.04223891]
[1754615590255,5.7372,174.25,174.21,1.01]
[1754615590559,3.35,174.29,174.18,1.01]
[1754615590762,3.35,174.29,174.16,8.11119148]
[1754615591053,3.35,174.24,174.15,1.01]
[1754615591255,5.7399,174.17,174.12,9.12119148]
[1754615591457,3.35,174.23,174.13,1.01]
[1754615591755,3.35,174.23,174.16,1.01]
[1754615591951,3.35,174.23,174.12,8.11119148]
[1754615592151,3.35,174.19,174.13,1.01]
[1754615592358,0.0435997,174.2,174.13,1.01]
[1754615592554,0.0435997,174.2,174.15,8.11119148]
[1754615592754,3.3935997,174.2,174.15,8.11119148]
[1754615592960,3.35,174.19,174.13,5.7408]
[1754615593155,3.35,174.19,174.09,395.14119148]
[1754615593556,5.7402,174.16,174.11,5.7415]
[1754615593765,3.39038801,174.16,174.11,1.01]
[1754615593958,0.04038801,174.16,174.11,1.01]
[1754615594160,0.04038801,174.16,174.1,1.01]
[1754615594456,3.39038801,174.16,174.1,1.01]
[1754615594965,9.13038801,174.16,174.1,1.01]
[1754615595158,3.39038801,174.16,174.12,1.01]
[1754615595358,3.35,174.15,174.09,387.03]
[1754615595760,0.04038801,174.16,174.11,8.11119148]
[1754615595960,0.04038801,174.16,174.13,1.01]
[1754615596164,3.35,174.15,174.12,1.01]
[1754615596561,0.04038801,174.16,174.12,1.01]
[1754615596765,0.04038801,174.16,174.15,6.7502]
[1754615596968,0.04038801,174.16,174.14,8.11119148]
[1754615597160,0.04038801,174.16,174.12,1.01]
[1754615597360,3.35,174.15,174.12,1.01]
[1754615597565,3.35,174.15,174.11,8.11119148]
[1754615597761,3.35,174.15,174.12,5.741]
[1754615598164,0.04038801,174.16,174.13,1.01]
[1754615598468,3.35,174.15,174.09,386.02]
[1754615598667,3.35,174.15,174.1,1.01]
[1754615598969,3.35,174.15,174.11,1.01]
[1754615599267,0.04038801,174.16,174.11,8.11119148]
[1754615599463,0.04038801,174.16,174.12,1.01]
[1754615599662,0.04038801,174.16,174.11,4.81522324]
[1754615599964,0.04038801,174.16,174.09,383.65870293]
[1754615600165,3.35,174.29,174.15,8.11119148]
[1754615600468,3.35,174.29,174.26,2.37330206]
[1754615600668,3.35,174.29,174.12,0.48241252]
[1754615600969,3.35,174.33,174.28,8.11119148]
[1754615601166,3.35,174.35,174.32,8.11119148]
[1754615601369,3.35,174.35,174.33,5.7341]
[1754615601571,3.35,174.37,174.32,8.11119148]
[1754615601770,3.35,174.4,174.31,8.11119148]
[1754615601969,3.35,174.4,174.32,5.7346]
[1754615602269,3.35,174.4,174.34,8.11119148]
[1754615603871,3.35,174.43,174.37,8.11119148]
[1754615604063,3.35,174.43,174.4,8.11119148]
[1754615604260,3.35,174.48,174.37,8.11119148]
[1754615604565,5.7304,174.45,174.37,8.11119148]
[1754615604771,3.35,174.44,174.4,8.11119148]
[1754615604970,3.35,174.47,174.4,8.11119148]
[1754615605175,3.35,174.47,174.43,8.11119148]
[1754615605375,3.35,174.53,174.43,8.11119148]
[1754615605571,385.64,174.63,174.42,112.36]
[1754615605873,0.48445201,174.54,174.48,2.86]
[1754615606062,5.7278,174.53,174.5,10.97119148]
[1754615606263,378.47734165,174.63,174.51,14.32638193]
[1754615606475,2.38121371,174.61,174.52,14.32638193]
[1754615606675,5.7274,174.54,174.53,14.32638193]
[1754615606971,8.11119148,174.59,174.46,8.11119148]
[1754615607167,5.7289,174.5,174.47,7.16292817]
[1754615607373,8.11119148,174.59,174.48,7.16292817]
[1754615607573,8.11119148,174.61,174.49,8.11119148]
[1754615607774,3.35,174.6,174.51,10.97119148]
[1754615608273,3.35,174.6,174.52,2.86]
[1754615608472,8.11119148,174.68,174.55,3.25]
[1754615608678,8.11119148,174.69,174.55,3.25]
[1754615608867,112.32,174.71,174.58,3.25]
[1754615609169,8.11119148,174.69,174.58,3.25]
[1754615609377,112.32,174.71,174.54,3.25]
[1754615609566,8.11119148,174.67,174.54,8.11119148]
[1754615609770,8.11119148,174.69,174.58,3.25]
[1754615609971,101.57909604,174.71,174.58,3.25]
[1754615610273,8.11119148,174.66,174.54,3.25]
[1754615610472,3.35,174.62,174.51,3.25]
[1754615610671,3.35,174.62,174.49,8.11119148]
[1754615610867,3.35,174.56,174.51,3.25]
[1754615611173,0.04415927,174.57,174.54,5.066e-05]
[1754615611374,9.0771,174.55,174.54,5.066e-05]
[1754615611676,0.18532352,174.62,174.5,3.1]
[1754615611869,0.18532352,174.62,174.53,3.1]
[1754615612069,0.18532352,174.62,174.56,3.1]
[1754615612271,8.11119148,174.68,174.56,3.1]
[1754615612470,11.4446,174.7,174.59,3.1]
[1754615612671,109.69028752,174.71,174.59,3.1]
[1754615612973,0.04065475,174.64,174.6,3.1]
[1754615613167,0.04065475,174.64,174.58,8.11119148]
[1754615613477,0.04065475,174.64,174.55,11.21119148]
[1754615613674,0.04065475,174.64,174.58,8.11119148]
[1754615613872,3.05,174.7,174.61,8.11119148]
[1754615614175,0.04218782,174.63,174.62,3.1]
[1754615614469,5.7244,174.63,174.62,3.1]
[1754615614672,8.11119148,174.74,174.64,3.13993188]
[1754615614870,112.38,174.77,174.66,3.1]
[1754615615075,112.38,174.77,174.69,3.1]
[1754615615373,5.7222,174.7,174.69,3.1]
[1754615615579,103.07678718,174.77,174.69,3.1]
[1754615616073,7.15483372,174.76,174.69,3.1]
[1754615616372,7.15483372,174.75,174.69,3.1]
[1754615616574,5.7212,174.73,174.71,8.11119148]
[1754615616773,5.7212,174.73,174.72,3.1]
[1754615616971,12.87514691,174.73,174.72,3.1]
[1754615617471,5.7225,174.69,174.68,3.1]
[1754615617676,4.29170365,174.69,174.63,3.1]
[1754615617874,10.01480365,174.68,174.66,3.1]
[1754615618073,1.53,174.76,174.66,3.1]
[1754615618272,105.18495287,174.84,174.68,8.11119148]
[1754615618475,1.52810664,174.8,174.7,8.11119148]
[1754615618768,1.52810664,174.8,174.73,8.11119148]
[1754615619075,5.7205,174.75,174.74,17.40706539]
[1754615619278,5.7205,174.75,174.74,14.30706539]
[1754615619466,0.95702327,174.81,174.74,14.30706539]
[1754615619671,102.08984044,174.84,174.75,14.30706539]
[1754615619974,5.7199,174.77,174.76,14.30706539]
[1754615620272,5.7199,174.77,174.76,10.25355815]
[1754615621275,5.7199,174.77,174.76,7.15355815]
[1754615621568,8.7699,174.77,174.76,7.15355815]
[1754615621773,8.7702,174.76,174.75,6.677e-05]
[1754615622173,3.05,174.76,174.68,8.11119148]
[1754615622374,5.7228,174.68,174.67,3.1]
[1754615622575,3.05,174.72,174.64,11.21119148]
[1754615622770,5.7235,174.66,174.65,3.1]
[1754615623371,5.7248,174.62,174.61,8.11119148]
[1754615623576,6.91071245,174.74,174.62,3.1]
[1754615623773,8.11119148,174.77,174.64,8.11119148]
[1754615623981,11.4385,174.79,174.62,3.14015734]
[1754615623982,19.54969148,174.79,174.68,3.1]
[1754615624481,13.82556925,174.79,174.68,3.1]
[1754615624883,112.26,174.85,174.73,3.1]
[1754615625084,19.54559148,174.86,174.74,3.1]
[1754615625282,5.7205,174.75,174.74,3.1]
[1754615625477,1.58,174.79,174.71,3.1]
[1754615625882,0.04393008,174.76,174.67,8.11119148]
[1754615626081,1.62393008,174.76,174.68,3.1]
[1754615626282,1.58,174.76,174.68,3.1]
[1754615626578,5.7225,174.69,174.68,3.1]
[1754615626986,0.03797372,174.7,174.66,8.11119148]
[1754615627283,0.03797372,174.7,174.69,3.1]
[1754615627481,1.58,174.78,174.7,3.1]
[1754615627984,0.03746006,174.71,174.7,3.1]
[1754615628184,1.62,174.81,174.7,3.1]
[1754615628382,1.62,174.81,174.72,8.15089834]
[1754615628686,8.11119148,174.83,174.72,8.15089834]
[1754615628687,1.62,174.79,174.72,8.15089834]
[1754615628885,1.62,174.82,174.72,8.15089834]
[1754615629078,1.62,174.84,174.73,3.1]
[1754615629488,6.86016193,174.86,174.73,3.1]
[1754615629686,24.07111897,174.9,174.77,0.04119552]
[1754615629888,118.68771517,174.88,174.78,3.1]
[1754615630086,5.7192,174.79,174.78,3.1]
[1754615630484,104.38347518,174.88,174.81,0.03783901]
[1754615630684,80.53988263,174.88,174.82,7.15127659]
[1754615630880,5.7172,174.85,174.84,3.1]
[1754615631079,16.44370472,174.85,174.84,10.25127659]
[1754615631286,16.44370472,174.85,174.84,7.15127659]
[1754615631482,3.05,174.88,174.77,24.06930436]
[1754615631686,289.68905178,174.91,174.78,6.43502527]
[1754615631886,8.11119148,174.83,174.78,9.429e-05]
[1754615632086,10.72647517,174.82,174.73,3.1]
[1754615632286,7.15102447,174.81,174.74,6.43714391]
[1754615632485,5.7202,174.76,174.75,9.53714391]
[1754615632683,5.7202,174.76,174.75,4.391e-05]
[1754615633082,5.7231,174.68,174.67,3.1]
[1754615633790,8.11119148,174.8,174.67,3.1]
[1754615634089,8.11119148,174.8,174.63,112.34]
[1754615634090,5.7692,174.79,174.78,5.295e-05]
[1754615634293,8.11119148,174.8,174.76,5.295e-05]
[1754615634489,25.33119148,174.8,174.76,5.295e-05]
[1754615634689,5.7199,174.77,174.76,5.295e-05]
[1754615635088,8.11119148,174.77,174.66,8.11119148]
[1754615635288,5.7231,174.67,174.66,3.1]
[1754615635482,25.33119148,174.77,174.66,3.1]
[1754615635994,5.7231,174.67,174.66,0.23771744]
[1754615636188,2.86,174.73,174.66,0.23771744]
[1754615636384,2.86,174.73,174.63,2.62401056]
[1754615636690,0.03879922,174.68,174.6,392.73119148]
[1754615636993,3.05,174.65,174.56,8.11119148]
[1754615637585,92.52831347,174.74,174.57,3.1]
[1754615637790,0.03606392,174.62,174.57,3.1]
[1754615638188,8.11119148,174.72,174.6,3.1]
[1754615638685,8.11119148,174.75,174.63,3.1]
[1754615638892,5.7241,174.64,174.63,3.1]
[1754615639081,8.11119148,174.72,174.63,3.1]
[1754615639483,17.22,174.78,174.52,143.29715852]
[1754615639688,11.4401,174.77,174.59,3.1]
[1754615639994,8.11119148,174.71,174.59,3.1]
[1754615640393,3.05,174.67,174.55,8.11119148]
[1754615640592,3.05,174.67,174.58,8.11119148]
[1754615640795,3.05,174.69,174.58,8.11119148]
[1754615641094,3.05,174.68,174.61,8.11119148]
[1754615641289,3.05,174.72,174.61,8.11119148]
[1754615641504,98.68835268,174.76,174.53,31.07715852]
[1754615641691,8.11119148,174.74,174.63,3.25]
[1754615641996,3.01,174.7,174.57,8.11119148]
[1754615642396,3.01,174.7,174.53,31.07715852]
[1754615642597,3.01,174.7,174.59,5.7257]
[1754615643099,3.01,174.69,174.58,8.11119148]
[1754615643593,10.73623395,174.68,174.59,3.25]
[1754615643902,10.73623395,174.67,174.63,3.25]
[1754615644097,10.73623395,174.66,174.61,8.11119148]
[1754615644393,10.73623395,174.65,174.57,39.18835]
[1754615644592,3.15,174.63,174.56,31.07715852]
[1754615644796,10.73623395,174.62,174.56,31.07715852]
[1754615644998,10.73623395,174.61,174.57,6.44332161]
[1754615645193,10.73623395,174.6,174.58,6.44332161]
[1754615645395,10.73931789,174.59,174.55,31.07715852]
[1754615645695,3.15,174.59,174.56,6.44367437]
[1754615645898,3.15,174.63,174.57,6.44367437]
[1754615646094,3.15,174.63,174.58,6.44367437]
[1754615646401,8.11119148,174.61,174.58,22.30363289]
[1754615646592,8.11119148,174.63,174.58,20.87151528]
[1754615646897,17.22,174.64,174.58,12.19831528]
[1754615647200,8.11119148,174.6,174.5,3.25]
[1754615647500,11.26119148,174.63,174.52,1.3345134]
[1754615647804,3.06,174.61,174.49,8.11119148]
[1754615648098,20.28,174.61,174.49,8.11119148]
[1754615648302,3.06,174.58,174.47,35.25853306]
[1754615648491,5.7282,174.52,174.48,2.38137718]
[1754615648698,3.06,174.58,174.47,35.25853306]
[1754615648898,3.06,174.58,174.47,43.36972454]
[1754615649101,3.06,174.57,174.47,8.11119148]
[1754615649402,3.06,174.57,174.48,8.11119148]
[1754615649598,92.40620831,174.64,174.42,327.57700318]
[1754615649897,3.15,174.57,174.45,8.11119148]
[1754615650104,3.15,174.57,174.46,5.7298]
[1754615650294,3.15,174.57,174.45,8.11119148]
[1754615650804,3.15,174.57,174.48,8.11119148]
[1754615651100,25.33119148,174.61,174.48,8.11119148]
[1754615651101,25.33119148,174.61,174.49,3.25]
[1754615651294,5.728,174.53,174.49,3.25]
[1754615651495,8.11119148,174.61,174.49,3.25]
[1754615651695,25.33119148,174.62,174.5,5.7287]
[1754615651896,25.33119148,174.62,174.51,3.25]
[1754615652198,25.33119148,174.59,174.51,3.25]
[1754615652393,8.11119148,174.62,174.51,3.25]
[1754615653098,25.33119148,174.62,174.51,3.25]
[1754615653496,8.31119148,174.62,174.51,8.11119148]
[1754615653691,5.7273,174.55,174.52,3.25]
[1754615653893,0.2,174.61,174.52,3.25]
[1754615654098,5.7271,174.55,174.54,31.76514007]
[1754615654403,5.9271,174.55,174.54,4.04664007]
[1754615654598,8.11119148,174.62,174.48,8.11119148]
[1754615654793,1.89,174.61,174.51,8.11119148]
[1754615655301,1.89,174.59,174.48,8.11119148]
[1754615655499,1.89,174.59,174.5,8.11119148]
[1754615655698,290.14938607,174.66,174.51,3.25]
[1754615655899,25.33119148,174.63,174.51,3.25]
[1754615656103,25.33119148,174.6,174.51,3.25]
[1754615656304,3.15,174.58,174.48,23.28246537]
[1754615656803,3.15,174.58,174.48,31.39365685]
[1754615657002,3.15,174.61,174.52,5.7278]
[1754615657198,3.15,174.61,174.51,8.11119148]
[1754615657508,3.58053608,174.6,174.51,8.11119148]